Cogmind - Beta 12 @@@ ROGUE MODE // 2024.02.24 @ 20:16:08 Player: Treadwheel Result: Destroyed by L-31 Rogue with Katana Performance ------------- Evolutions (1) 500 Regions Visited (3) 600 Robots Destroyed (101) 505 Value Destroyed (2125) 2125 Prototype IDs (7) 140 Alien Tech Used (0) 0 Bonus (0) 0 TOTAL SCORE: 3870 Bonus ------- None Cogmind --------- Core Integrity 0/400 Matter 187/300 Energy 91/100 System Corruption 3% Temperature Warning (374) Movement Treading (240) Ox1 Location -9/Storage Parts ------- > --- POWER (1) -------- Improved Ion Engine > --- PROPULSION (3) --- Light Treads Light Treads Compact Wheel > --- UTILITY (3) ------ High-capacity Storage Unit Signal Interpreter Hardened Light Armor Plating > --- WEAPON (2) ------- Advanced Beam Cannon Improved Assault Rifle > --- INVENTORY (20) --- Cooled Ion Engine Improved Treads Improved Treads Improved Flight Unit Improved Flight Unit Improved Flight Unit Improved Flight Unit Improved Flight Unit Improved Flight Unit Cooling System Structural Scanner Sensor Array Improved Terrain Scanner Melee Analysis Suite Shield Generator Hacking Suite Rocket Launcher Datajack Maul Peak State ------------ > --- POWER ------------ Improved Ion Engine > --- PROPULSION ------- Light Treads Armored Wheel Armored Wheel > --- UTILITY ---------- High-capacity Storage Unit Transport Network Coupler Medium Armor Plating > --- WEAPON ----------- Improved Medium Laser Improved Medium Laser > --- INVENTORY -------- Ion Engine Light Nuclear Core Light Treads Light Treads Light Treads Light Treads Compact Wheel Improved Flight Unit Improved Flight Unit Improved Flight Unit Cooling System Sensor Array Signal Interpreter Improved Terrain Scanner Terrain Scan Processor Improved Targeting Computer Hacking Suite Datajack Maul [Rating: 20] Favorites ----------- Power Improved Ion Engine Engine Improved Ion Engine Propulsion Light Treads Treads Light Treads Leg Aluminum Leg Wheel Armored Wheel Flight Unit Improved Flight Unit Utility High-capacity Storage Unit Device Sensor Array Storage High-capacity Storage Unit Processor Signal Interpreter Protection Hardened Light Armor Plating Weapon Advanced Beam Cannon Energy Gun Improved Medium Laser Energy Cannon Advanced Beam Cannon Ballistic Gun Assault Rifle Launcher Rocket Launcher Special Weapon Plasma Cutter Impact Weapon Maul Special Melee Weapon Datajack Build | -11 -10 -9 -9 ------- Run | Jun Mat Mat Sto Slots Evolved 2 | . . 2 . Power . | . . . . Propulsion 1 | . . 1 . Utility 1 | . . 1 . Weapon . | . . . . Parts Attached 108 | 4 12 61 31 Power 13 | . 2 7 4 Engine 13 | . 2 7 4 Core . | . . . . Reactor . | . . . . Propulsion 24 | 2 1 14 7 Treads 14 | 1 1 7 5 Leg . | . . . . Wheel 9 | 1 . 6 2 Hover . | . . . . Flight 1 | . . 1 . Utility 29 | 2 5 15 7 Device 13 | 2 1 7 3 Storage 3 | . 3 . . Processor 3 | . 1 2 . Hackware . | . . . . Protection 10 | . . 6 4 Artifact . | . . . . Weapon 42 | . 4 25 13 Energy Gun 8 | . 2 6 . Energy Cannon 15 | . 1 9 5 Ballistic Gun 5 | . 1 1 3 Ballistic Cannon . | . . . . Launcher 1 | . . . 1 Special Weapon 2 | . . 2 . Impact Weapon 6 | . . 5 1 Slashing Weapon . | . . . . Piercing Weapon . | . . . . Special Melee Weapon 5 | . . 2 3 Unidentified Prototypes 7 | . 1 3 3 Parts Lost 12 | . . 6 6 Power 1 | . . . 1 Propulsion 6 | . . 2 4 Utility 1 | . . 1 . Weapon 4 | . . 3 1 Highest Loss Streak 2 | . . 2 2 To Critical Strikes . | . . . . Average Slot Usage (%) 99 | . 99 98 98 Engine 11 | . 14 10 10 Treads 16 | . 14 13 26 Wheel 15 | . 14 18 6 Device 4 | . 11 3 3 Storage 11 | . 14 11 11 Processor 11 | . 2 14 11 Protection 3 | . . 4 7 Energy Gun 3 | . 4 4 . Energy Cannon 8 | . 6 9 9 Ballistic Gun 4 | . 16 . 1 Impact Weapon 5 | . . 5 10 Naked Turns . | . . . . Heaviest Build 91 | 12 91 60 59 Greatest Support 60 | 20 16 32 60 Greatest Overweight (x) 5 | . 5 4 4 Average Overweight (x) 2 | . 2 2 2 Largest Inventory Capacity 25 | 8 25 20 20 Average Capacity 19 | 8 19 20 20 Most Carried 25 | 7 25 20 20 Average Carried 18 | 6 17 19 19 Final Capacity 20 | 8 20 20 20 Final Carried 20 | 7 20 20 19 Class Distribution -------------------- 54% | Mutant 45% | Scavenger-Mutant Dominant Class ---------------- Mutant | -10/Materials Scavenger-Mutant | -9/Materials Mutant | -9/Storage Resources | -11 -10 -9 -9 ----------- Run | Jun Mat Mat Sto Matter Collected 1548 | 288 252 703 305 Remotely . | . . . . Salvage Created 3316 | 134 518 1624 1040 Parts 203 | 7 44 114 38 Haulers Intercepted 11 | . 2 6 3 Recyclers Shooed 1 | . . . 1 Parts Field Recycled . | . . . . Retrieved Matter . | . . . . Parts Self-Destructed . | . . . . Prevented . | . . . . Kills | -11 -10 -9 -9 ------- Run | Jun Mat Mat Sto Combat Hostiles Destroyed 64 | . 10 32 22 Melee 17 | . . 8 9 Guns 23 | . 9 13 1 Cannons 10 | . 1 7 2 AOE 6 | . . . 6 Classes Destroyed 12 | 2 5 3 2 Worker 4 | . . 2 2 Builder 2 | . 1 1 . Tunneler 3 | 3 . . . Hauler 11 | . 2 6 3 Recycler 7 | 1 1 1 4 Operator 2 | . . 2 . Watcher 8 | . 3 5 . Swarmer 23 | . 6 13 4 Grunt 26 | . 4 9 13 Brawler 1 | . . . 1 Protector 1 | . . . 1 Sentry 13 | . . 10 3 Best Kill Streak 11 | 2 5 5 11 Combat Bots Only 8 | . 3 5 8 Max Kills in Single Turn 5 | 1 1 2 5 Gunslinging 1 | . . 1 . Exploded 4 | . . . 4 Melee 1 | . . 1 1 Uniques/NPCs Destroyed . | . . . . Combat | -11 -10 -9 -9 -------- Run | Jun Mat Mat Sto Damage Taken 3482 | . 318 1529 1635 Core 505 | . 76 256 173 Absorbed by Shields . | . . . . Regen/Repaired (Parts) 380 | . . 201 179 Core Remaining (%) 84 | 100 69 . . Volleys Fired 155 | 12 39 80 24 Largest 2 | 2 2 2 2 Hottest 136 | 40 85 136 91 Shots Fired 284 | 24 78 145 37 Gun 195 | 24 73 87 11 Cannon 69 | . 5 44 20 Launcher 6 | . . . 6 Special 14 | . . 14 . Kinetic 94 | 24 54 5 11 Thermal 184 | . 24 140 20 Explosive 6 | . . . 6 Electromagnetic . | . . . . Robot Hit Streak 8 | 7 8 8 5 Robot Miss Streak 6 | 1 6 4 3 Penetration Max . | . . . . Secondary Targets 2 | . 1 1 . Max Gunslinging Chain 1 | . 1 1 . Shots Hit Robots 255 | 17 41 110 87 Core Hits 94 | 6 20 45 23 Critical Kills 5 | . . 4 1 Critical Parts Destroyed 13 | . . 5 8 Critical Strikes 27 | . 1 17 9 Burn 9 | . 1 8 . Smash 18 | . . 9 9 Melee Attacks 120 | . . 39 81 Impact 110 | . . 33 77 Slashing . | . . . . Piercing . | . . . . Sneak Attacks 19 | . . 9 10 Combat Hostiles 1 | . . 1 . Follow-up Attacks . | . . . . Damage Inflicted 6606 | 179 594 2430 3403 Guns 1690 | 179 524 894 93 Cannons 866 | . 70 550 246 Explosions 660 | . . . 660 Melee 3333 | . . 929 2404 Ramming 1 | . . 1 . Kinetic 622 | 179 326 24 93 Thermal 1990 | . 268 1476 246 Explosive 660 | . . . 660 Electromagnetic . | . . . . Impact 3333 | . . 929 2404 Slashing . | . . . . Piercing . | . . . . Highest Corruption 3 | . . 3 3 Average Corruption 2 | . . 2 3 Corruption Purged . | . . . . Corruption Blocked . | . . . . Effects 69 | . . 48 21 Message Errors 16 | . . 12 4 Matter Fused 19 | . . 12 7 Heat Flow Errors 9 | . . 7 2 Energy Discharges 8 | . . 6 2 Parts Rejected 1 | . . . 1 Data Loss (minor) 7 | . . 6 1 Data Loss (major) 4 | . . 3 1 Misfires 3 | . . 1 2 Alerts 2 | . . 1 1 Overload Shots . | . . . . Overflow Damage 968 | . 15 281 672 Projectiles 15 | . 15 . . Explosions . | . . . . Melee 953 | . . 281 672 Knockbacks 8 | . . 1 7 Impact 7 | . . 1 6 Kinetic . | . . . . Secondary 1 | . . . 1 Self-Inflicted Damage 39 | . . . 39 Shots 1 | . . . 1 Rammed 1 | . . 1 . Targets Rammed 1 | . . 1 . Kicked . | . . . . Crushed . | . . . . Highest Temperature 374 | . 174 359 374 Average Temperature 81 | . 46 86 93 Received Heat Transfer 978 | . 54 387 537 Effects 8 | . . 7 1 Interference 6 | . . 6 . Short Circuit 2 | . . 1 1 Siege Activations . | . . . . Robots Corrupted . | . . . . Combat Hostiles . | . . . . Parts Fried 24 | . . 16 8 Impact Corruptions 35 | . . 14 21 Robots Melted . | . . . . Combat Hostiles . | . . . . Parts Melted 9 | . 2 7 . Heat Transferred 4773 | . 666 3663 444 Parts Sabotaged . | . . . . Parts Stolen . | . . . . Parts Stripped . | . . . . Power Chain Reactions . | . . . . Missiles Intercepted . | . . . . Alert | -11 -10 -9 -9 ------- Run | Jun Mat Mat Sto Peak Influence 387 | 20 225 387 333 Initial 44 | . 13 . 44 Average 120 | 9 52 161 85 Maximum Alert Level 1 | . 1 1 1 Low Security (%) 84 | 100 97 74 97 Level 1 15 | . 2 25 2 Level 2 . | . . . . Level 3 . | . . . . Level 4 . | . . . . Level 5 . | . . . . High Security . | . . . . Max Security . | . . . . Squads Dispatched 9 | . 2 4 3 Investigation 3 | . 2 1 . Extermination . | . . . . Reinforcement 5 | . . 3 2 Assault 1 | . . . 1 Garrison . | . . . . Intercept . | . . . . Searches Triggered . | . . . . Construction Impeded . | . . . . Haulers Reinforced . | . . . . Active Scanning Responses . | . . . . Cargo Convoy Interrupts . | . . . . Stealth | -11 -10 -9 -9 --------- Run | Jun Mat Mat Sto Distress Signals 5 | . 1 4 . Communications Jammed . | . . . . Distress Signals . | . . . . Times Spotted 105 | . 18 55 32 Peak Tracking Total 10 | . 4 5 10 Tactical Retreats 8 | . . 3 5 Traps | -11 -10 -9 -9 ------- Run | Jun Mat Mat Sto Traps Triggered 9 | . 2 4 3 Indirectly . | . . . . Trap Hack Attempts . | . . . . Triggered . | . . . . Disarmed . | . . . . Reprogrammed . | . . . . Reused . | . . . . Traps Extracted . | . . . . Installed . | . . . . Triggered 1 | . . . 1 Machines | -11 -10 -9 -9 ---------- Run | Jun Mat Mat Sto Machines Disabled 8 | . 1 2 5 Max in Single Turn 1 | . 1 1 1 Garrison Access 1 | . . . 1 Machines Repaired . | . . . . Machines Sabotaged . | . . . . Overloaded Fab Kills . | . . . . Hacking | -11 -10 -9 -9 --------- Run | Jun Mat Mat Sto Machines Accessed 25 | . 7 14 4 Terminals 15 | . 5 8 2 Fabricators . | . . . . Repair Stations 3 | . . 2 1 Recycling Units 5 | . 2 2 1 Scanalyzers 2 | . . 2 . Garrison Access . | . . . . Total Hacks 84 | . 25 43 16 Successful 48 | . 13 27 8 Failed 36 | . 12 16 8 Catastrophic 4 | . 2 2 . Database Lockouts . | . . . . Manual 25 | . 10 12 3 Terminals 49 | . 21 23 5 Fabricators . | . . . . Repair Stations 12 | . . 7 5 Recycling Units 16 | . 4 6 6 Scanalyzers 7 | . . 7 . Garrison Access . | . . . . Terminal Hacks 14 | . 6 6 2 Record 1 | . 1 . . Open Door 1 | . . . 1 Alert Level 2 | . 1 1 . Unreport Threat 5 | . 1 3 1 Locate Traps 1 | . . 1 . Security Status 1 | . 1 . . Hauler Manifests 2 | . 1 1 . Zone Layout 1 | . 1 . . Fabricator Hacks . | . . . . Repair Station Hacks 8 | . . 6 2 Scan Component 4 | . . 3 1 Repair 4 | . . 3 1 Recycling Unit Hacks 6 | . 2 2 2 Retrieve Matter 1 | . . . 1 Retrieve Components 5 | . 2 2 1 Scanalyzer 7 | . . 7 . Insert Component 4 | . . 4 . Analyze 3 | . . 3 . Garrison Access Hacks . | . . . . Unauthorized Hacks 13 | . 5 6 2 Terminals 8 | . 3 4 1 Assimilate 1 | . . 1 . Botnet 5 | . 2 2 1 Operators 2 | . 1 1 . Fabricators . | . . . . Repair Stations . | . . . . Recycling Units 5 | . 2 2 1 Reject 5 | . 2 2 1 Scanalyzers . | . . . . Garrison Access . | . . . . Data Cores Recovered 1 | . . 1 . Used . | . . . . Hacking Detections 22 | . 7 12 3 Full Trace Events 3 | . 1 2 . Feedback Events . | . . . . Feedback Blocked . | . . . . Robot Schematics Acquired . | . . . . Robots Built . | . . . . Authchips . | . . . . Time . | . . . . Total Robot Build Rating . | . . . . Part Schematics Acquired 3 | . . 3 . Parts Built . | . . . . Authchips . | . . . . Time . | . . . . Total Part Build Rating . | . . . . Parts Repaired 4 | . . 3 1 Time 147 | . . 115 32 Parts Recycled . | . . . . Recycled Matter . | . . . . Retrieved Matter 128 | . . . 128 Retrieved Components 36 | . 10 17 9 Parts Scanalyzed 3 | . . 3 . Part Schematics Acquired 3 | . . 3 . Parts Damaged . | . . . . Bothacking | -11 -10 -9 -9 ------------ Run | Jun Mat Mat Sto Used RIF Installer . | . . . . Robots Hacked 5 | . . 3 2 Non-combat 5 | . . 3 2 Combat . | . . . . Robot Hacks Applied 7 | . . 4 3 parse_system 3 | . . 2 1 no_distress 2 | . . 1 1 find_recycling 2 | . . 1 1 Relay Couplers Released 3 | . . . 3 Machine Destruction 3 | . . . 3 Fabnet Peak Effective % . | . . . . Robots Rewired . | . . . . Allies Hacked . | . . . . Hacks Repelled . | . . . . Allies | -11 -10 -9 -9 -------- Run | Jun Mat Mat Sto Total Allies 1 | . . 1 . Largest Group 1 | . . 1 . Highest-Rated Group 10 | . . 10 . Highest-Rated Ally 10 | . . 10 . Total Orders . | . . . . Ally Attacks . | . . . . Total Damage . | . . . . Kills . | . . . . Allies Corrupted . | . . . . Allies Melted . | . . . . Intel | -11 -10 -9 -9 ------- Run | Jun Mat Mat Sto Robot Analysis Total . | . . . . Derelict Logs Recovered . | . . . . Drone Launches . | . . . . Drone Recoveries . | . . . . Exploration | -11 -10 -9 -9 ------------- Run | Jun Mat Mat Sto Turns Passed 5807 | 86 1225 3271 1225 Spaces Moved 3301 | 43 759 1984 515 Core . | . . . . Treads 215 | . . . 215 Legs 2 | 2 . . . Wheels 3084 | 41 759 1984 300 Hover . | . . . . Flight . | . . . . Fastest Speed 100 | 100 100 110 145 Average Speed 133 | 100 138 126 153 Slowest Speed 175 | 120 175 150 160 Overloaded Moves . | . . . . Propulsion Burnouts . | . . . . Robots Hopped . | . . . . Cave-ins Triggered . | . . . . Exploration Rate (%) 63 | 3 93 98 58 Regions Visited 3 Branch Regions 1 Pre-discovered Areas . | . . . . Known Exits Taken 2 | . 1 1 . Unknown Exits Taken 1 | 1 . . . Scrap Searched . | . . . . Spaces Dug 3 | . . 3 . Terrain Destroyed 47 | . . 3 44 Melee 3 | . . 3 . Projectile . | . . . . AOE 44 | . . . 44 Terrain Rammed . | . . . . Walls Destroyed . | . . . . Machines Disabled . | . . . . Actions | -11 -10 -9 -9 --------- Run | Jun Mat Mat Sto Total 4193 | 61 861 2518 753 Wait 386 | 2 8 293 83 Move 3298 | 42 758 1983 515 Hop . | . . . . Pick Up 51 | 1 24 23 3 Fast Attach 25 | 1 3 13 8 Attach 13 | . . 7 6 Detach 6 | . 1 1 4 Swap 71 | 3 9 42 17 Drop 59 | . 19 36 4 Fire 155 | 12 39 80 24 Melee 120 | . . 39 81 Ram 1 | . . 1 . Kick . | . . . . Crush . | . . . . Escape Stasis 8 | . . . 8 Rewire . | . . . . Trap . | . . . . Miscellaneous . | . . . . Route ------- -11/Junkyard -10/Materials (discovered 4 exits: *Mat x3 / *Min) -9/Materials (discovered 6 exits: *Mat x3 / *Min x2 / *Sto) -9/Storage History --------- Turn | Location | Event 1 | -11/Junkyard | Discovered new exit (range 3) 87 | -11/Junkyard | Entered Materials 308 | -10/Materials | Build established: Mutant 575 | -10/Materials | Discovered new exit (range 5) 878 | -10/Materials | Discovered new exit (range 5) 1069 | -10/Materials | Discovered new exit (range 7) 1117 | -10/Materials | Identified exit to Mines 1156 | -10/Materials | Identified exit to Materials 1237 | -10/Materials | Discovered exit to Materials (range 7) 1312 | -10/Materials | Entered another Materials area 1312 | -9/Materials | Evolved 2 slots: Propulsion x1, Utility x1 1957 | -9/Materials | Discovered new exit (range 16) 1958 | -9/Materials | Build established: Scavenger-Mutant 2206 | -9/Materials | Discovered new exit (range 6) 2415 | -9/Materials | Identified exit to Materials 2896 | -9/Materials | Core integrity fell below 50% 2961 | -9/Materials | Discovered exit to Materials (range 3) 3009 | -9/Materials | Discovered new exit (range 13) 3024 | -9/Materials | Identified exit to Storage 3263 | -9/Materials | Repaired Adv. Beam Cannon 3297 | -9/Materials | Repaired Arm. Wheel 3423 | -9/Materials | Repaired Imp. Ion Engine 3482 | -9/Materials | Identified exit to Mines 4010 | -9/Materials | Discovered exit to Materials (range 10) 4132 | -9/Materials | Discovered exit to Mines (range 16) 4583 | -9/Materials | Entered Storage 5211 | -9/Storage | Build established: Mutant 5349 | -9/Storage | Core integrity fell below 20% 5597 | -9/Storage | Repaired Hrd. Light Armor Plating 5808 | -9/Storage | Destroyed by L-31 Rogue with Katana Last Messages --------------- 05791_ K-01 Serf collects debris. 05795_ Storage Shell breached. 05795_ B-36 Bruiser destroyed. 05796_ U-05 Engineer lays Concrete. 05798_ U-05 Engineer builds a Wall. 05798_ K-01 Serf collects debris. 05798_ G-34 Mercenary destroyed. 05799_ U-05 Engineer lays Concrete. 05801_ R-06 Scavenger collects Heat Sink. 05801_ U-05 Engineer builds a Wall. 05803_ The unstable cave ceiling collapses. 05803_ U-05 Engineer lays Concrete. 05804_ R-06 Scavenger collects Heat Sink. 05804_ U-05 Engineer lays Concrete. 05805_ K-01 Serf collects debris. 05805_ U-05 Engineer builds a Wall. 05806_ Imp. Ion Engine broken. 05806_ Overheating: Short circuit. 05806_ U-05 Engineer lays Concrete. 05808_ R-06 Scavenger collects Sml. Laser. Map ----- +----------------------------------------------------+ | ?????????????????????????????????????????# | | ?????????????????????????????????????????# | | ?????????????????????????????????????????# | | ?????????????????????????????????????????# | | ?????????????????????????????????????????# | | ?????????????????????????????????????????# | | ?????????????????????????????????????????# | | ????????????????????????????????????????## | | ????????????????????????????????????????## | | ????????????????????????????????????????## % | | ????????????????????!a*?????????????????## | | ???????????????????# %#????????????????## | | ??????????????????? %**###??????????????## | | ??????????????????##%*%#! ??????????????## | | ?????????????????? #k%=# "???????????????# | | ?????????????????? u# "???????????????# | | ????????????????### r ??"""??????????# | | ???????????????? """*[???????????# | | ????????????????" " [??????####### | | ????????????????" "??????##"T"# # | | ????????????????" ???????# # | | ???????????????"" a ????????# """ # | | ??????????????"" #?#####???# """ # | | ?????????# """" # ##?#"""#???# """ # | | ?????????# w l% ###"Y"##### # | | ????????????????# @* #%[[![** # """ + % | | ????????? # # [["""" # """ # | | ???????# =??# ## ["""" # """ # | | ???????T ???? # """" # # | | ???????# ?????? *%=# """" # """ # | | ???????# ????????# !## ! # """ # | | ???????# ?????????? =%u## # """ # | | ?????????????????? %! ## # # | | ??????????????#### % r #######+##+######## | | ??????? % ^ | | ??????? ^ | | ??????? ^ | | ???????###################################### | | ????????????????????????????????????????????? | | ????????????????????????????????????????????? | | ????????????????????????????????????????????? | | ????????????????????????????????????????????? | | ????????????????????????????????????????????? | | | | | | | | | | | | | | | +----------------------------------------------------+ Best States ------------- Heat Dissipation 50 Energy Generation 14 Energy Capacity 280 Matter Stores 300 Matter Capacity 300 Sight Range 16 Robot Scan Range 14 Terrain Scan Range 16 Terrain Scan Density 10 Armor Coverage 225 Evasion (%) 40 Recoil Reduction 3 Item Schematics ----------------- Imp. Flight Unit | -9/Materials | Scanalyzed Hrd. Light Armor Plating | -9/Materials | Scanalyzed Hacking Suite | -9/Materials | Scanalyzed Robot Schematics ------------------ None Fabricated ------------ Nothing Alien Tech Used ----------------- None Achievements -------------- None Challenges ------------ None Game ------ Seed ModifiedSensorDrive Manual? 0 Play Time 01:17:56 Cumulative 41.6 hours Start 2024.02.23 @ 23:43:36 End 2024.02.24 @ 20:16:08 Sessions 2 Manual Loads 0 Difficulty Rogue Special Mode None Game No. 18 Rogue 18 Adventurer 0 Explorer 0 Win Type - Total 1 Types 1/0/0/0/0/0/0/0/0 Lore% 28 Gallery% 42 Achievement% 34 Wizard Run 0 Options --------- ASCII 0 Keyboard 0 Movement Numpad Keybinds 0 Fullscreen 2 Font 18/SmallcapsGlow Map View 76x50 Tactical HUD 1 Map Filters NONE Filters NONE Steam 1 RUN: 713fb2f2-8461-4e34-b765-baefb0fde3c6